bitfinex/quotes_ETHUSD_20240921
["timestamp","ask_amount","ask_price","bid_price","bid_amount"]
[1726888491079,0.24762263,2550.4,2550.3,1.7336404]
[1726888492214,0.24762263,2550.4,2549.9,2.3508]
[1726888492357,0.24762263,2550.4,2550.3,1.7336404]
[1726888492560,0.51492489,2550.4,2550.3,1.7336404]
[1726888495611,0.24762263,2550.4,2550.3,1.7336404]
[1726888501168,2.3464859,2550.4,2550.3,1.7336404]
[1726888501375,2.54789596,2550.4,2550.3,1.7336404]
[1726888502905,0.24759596,2550.4,2550.3,1.7336404]
[1726888503400,0.0461859,2550.4,2550.3,7.12605459]
[1726888503618,0.0461859,2550.4,2550.3,7.83866005]
[1726888503619,0.23418044,2550.4,2550.3,7.83866005]
[1726888503765,0.0461859,2550.4,2550.3,6.02660546]
[1726888504113,0.0461859,2550.4,2550.3,2.44624586]
[1726888509011,0.23434488,2550.4,2550.3,2.44624586]
[1726888509193,0.0461859,2550.4,2550.3,1.7336404]
[1726888509705,0.23433292,2550.4,2550.3,1.7336404]
[1726888510607,0.0461859,2550.4,2550.3,1.7336404]
[1726888521875,0.0461859,2550.4,2550.3,1.7254128]
[1726888532608,2.3305859,2550.4,2550.3,1.7254128]
[1726888532805,2.57606122,2550.4,2550.3,1.7254128]
[1726888536195,2.83366734,2550.4,2549.8,2.314]
[1726888536397,2.83366734,2550.4,2550.2,1.7336404]
[1726888537607,2.83366734,2550.4,2549.6,2.3382]
[1726888537832,2.83366734,2550.4,2550.1,1.7336404]
[1726888551863,2.83366734,2550.4,2549.9,1.7336404]
[1726888552149,2.83366734,2550.4,2549.6,2.3382]
[1726888552150,2.3383,2550.2,2549.6,2.3382]
[1726888552348,2.3383,2550.2,2549.9,1.7336404]
[1726888552721,0.2453318,2550.1,2549.9,1.7336404]
[1726888554867,0.2453318,2550.1,2549.2,2.4507]
[1726888554868,2.4975,2550.0,2549.2,2.4507]
[1726888555026,2.4975,2549.8,2549.3,1.7336404]
[1726888555861,0.24523011,2549.7,2549.3,1.7336404]
[1726888556212,0.0088706,2549.7,2549.3,4.7336404]
[1726888556415,0.24523011,2549.6,2549.3,4.7336404]
[1726888556643,0.0088706,2549.7,2549.3,4.7336404]
[1726888556855,0.24523011,2549.5,2549.3,4.7336404]
[1726888557096,0.0088706,2549.7,2549.3,4.7336404]
[1726888557551,0.24523011,2549.6,2549.3,4.7336404]
[1726888557728,0.0088706,2549.7,2549.3,4.7336404]
[1726888557924,0.24511345,2549.6,2549.3,4.7336404]
[1726888558124,0.0088706,2549.7,2549.3,4.7336404]
[1726888558331,0.24511345,2549.6,2549.3,4.7336404]
[1726888558548,0.0088706,2549.7,2549.3,4.7336404]
[1726888558721,0.24511345,2549.6,2549.3,4.7336404]
[1726888558917,0.0088706,2549.7,2549.3,4.7336404]
[1726888559116,0.24511345,2549.6,2549.3,4.7336404]
[1726888559317,0.0088706,2549.7,2549.3,4.7336404]
[1726888559628,0.24511345,2549.6,2549.3,4.7336404]
[1726888559822,0.25950766,2549.7,2549.3,4.7336404]
[1726888560021,0.24511345,2549.5,2549.3,4.7336404]
[1726888560219,2.4975,2549.6,2549.3,3.0]
[1726888560418,0.24510747,2549.4,2549.3,1.7336404]
[1726888561046,2.4975,2549.6,2549.3,1.7336404]
[1726888561223,0.24510747,2549.4,2549.3,1.7336404]
[1726888561417,0.27570077,2549.5,2549.3,1.7336404]
[1726888561623,0.24510747,2549.4,2549.3,1.7336404]
[1726888564259,0.0088706,2549.7,2549.3,4.1843404]
[1726888564419,0.0088706,2549.7,2549.6,1.7336404]
[1726888565858,0.0088706,2549.7,2549.4,1.7336404]
[1726888570049,2.4975,2549.6,2548.9,2.4507]
[1726888570225,2.4975,2549.6,2549.3,1.7336404]
[1726888570424,0.24487711,2549.5,2549.3,1.7336404]
[1726888571923,0.24487711,2549.5,2549.3,4.7336404]
[1726888575861,0.24487711,2549.5,2549.3,1.7336404]
[1726888576755,2.4524,2549.4,2548.9,2.4363]
[1726888576951,0.24480828,2549.3,2549.2,1.7336404]
[1726888581360,2.4524,2549.6,2549.2,1.7336404]
[1726888581555,2.69852706,2549.6,2549.2,1.7336404]
[1726888581747,0.24480828,2549.5,2549.2,1.7336404]
[1726888587361,2.2789,2549.4,2549.0,1.7336404]
[1726888587561,0.24467658,2549.3,2549.0,1.7336404]
[1726888588388,0.49703424,2549.3,2549.0,1.7336404]
[1726888588769,0.49703424,2549.3,2548.4,2.2939]
[1726888588770,2.2789,2549.2,2548.4,2.2939]
[1726888589198,2.2789,2549.1,2548.3,1.7336404]
[1726888589408,2.2789,2548.9,2548.3,1.7336404]
[1726888590004,2.2789,2548.9,2547.7,0.44759915]
[1726888590005,2.2789,2548.7,2548.1,1.7336404]
[1726888590605,0.2442784,2548.6,2547.8,2.2939]
[1726888590820,2.2789,2548.5,2547.8,2.2939]
[1726888590963,0.22789,2548.4,2547.8,2.2939]
[1726888591387,0.2442784,2548.3,2547.8,4.0275404]
[1726888592401,0.2442784,2548.3,2547.9,3.0]
[1726888595263,0.2442784,2548.3,2548.0,1.7336404]
[1726888596569,0.2442784,2548.3,2547.8,1.7336404]
[1726888596789,0.51938524,2548.3,2547.8,1.7336404]
[1726888597109,2.3236,2548.2,2547.8,1.7336404]
[1726888597505,0.2441017,2548.1,2547.8,1.7336404]
[1726888600725,0.2441017,2548.1,2548.0,1.7336404]
[1726888607689,0.24376463,2548.1,2548.0,4.0509404]
[1726888607926,9.6936,2548.6,2548.0,4.0509404]
[1726888608125,10.66296,2548.6,2548.3,1.7336404]
[1726888608719,2.3236,2548.5,2547.4,0.0284447]
[1726888608925,2.3236,2548.5,2547.8,3.0]
[1726888610112,2.3236,2548.5,2547.9,1.7336404]
[1726888610293,0.23236,2548.4,2547.9,1.7336404]
[1726888614525,2.3236,2548.5,2547.9,1.7336404]
[1726888615251,0.24197218,2548.4,2547.9,1.7336404]
[1726888618838,0.19197218,2548.4,2547.9,1.7336404]
[1726888619041,0.24030551,2548.4,2547.9,1.7336404]
[1726888621973,0.24030551,2548.4,2547.9,1.73240612]
[1726888622480,2.358,2548.3,2547.9,1.73240612]
[1726888622980,0.24030551,2548.2,2547.9,1.73240612]
[1726888623367,2.358,2548.2,2547.4,0.0284447]
[1726888623684,0.24030551,2548.1,2547.5,4.7336404]
[1726888623842,2.358,2548.2,2547.6,0.71869851]
[1726888624043,0.24028156,2548.1,2547.6,0.71869851]
[1726888624238,2.358,2548.0,2547.6,0.71869851]
[1726888624854,0.24028156,2547.9,2547.6,0.71869851]
[1726888627076,0.24028156,2547.9,2547.4,0.0284447]
[1726888627343,2.358,2547.8,2547.4,0.0284447]
[1726888627543,2.59820066,2547.8,2547.4,0.0284447]
[1726888637792,0.24020066,2547.8,2547.7,1.7336404]
[1726888638305,0.23892792,2547.8,2547.7,1.7336404]
[1726888638505,2.3037,2548.0,2547.7,1.7336404]
[1726888638704,0.23892792,2547.9,2547.7,1.7336404]
[1726888658328,0.23111009,2547.8,2547.7,2.20700444]
[1726888658545,2.3197,2548.2,2547.7,2.20700444]
[1726888658753,0.23111009,2548.1,2547.7,1.7336404]
[1726888661160,2.3197,2548.0,2547.5,1.7336404]
[1726888661457,2.55081009,2548.0,2547.5,4.7336404]
[1726888661661,2.55081009,2548.0,2547.4,0.0284447]
[1726888661868,2.55081009,2548.0,2547.4,1.7620851]
[1726888662162,2.3197,2547.8,2547.4,1.7620851]
[1726888662656,0.23110402,2547.7,2547.4,1.7620851]
[1726888663063,2.3197,2547.8,2547.4,1.7620851]
[1726888663550,0.23110402,2547.7,2547.4,1.7620851]
[1726888663754,2.3197,2547.8,2547.4,1.7620851]
[1726888664139,0.23110402,2547.7,2547.4,1.7620851]
[1726888664326,2.3197,2547.8,2547.4,1.7620851]
[1726888664573,0.23110402,2547.7,2547.4,1.7620851]
[1726888665063,2.3197,2547.8,2547.4,1.7620851]
[1726888665265,0.23110402,2547.6,2547.4,1.7620851]
[1726888665564,0.23110402,2547.5,2547.4,1.7620851]
[1726888666282,2.3197,2547.8,2547.4,1.7620851]
[1726888666484,0.23110402,2547.7,2547.4,1.7620851]
[1726888666785,2.3197,2547.8,2547.4,1.7620851]
[1726888666982,0.23110402,2547.6,2547.4,1.7620851]
[1726888667293,2.3197,2547.8,2547.4,1.7620851]
[1726888667646,0.23110402,2547.7,2547.4,1.7620851]
[1726888667842,2.3197,2547.8,2547.4,1.7620851]
[1726888668084,0.23197,2547.7,2547.4,1.7620851]
[1726888668382,0.23110402,2547.6,2547.4,1.7620851]
[1726888668582,2.3197,2547.5,2547.4,0.0284447]
[1726888668965,2.55072832,2547.5,2547.4,0.0284447]
[1726888675082,0.23102832,2547.5,2547.4,1.7620851]
[1726888675279,2.2539,2547.7,2547.4,1.7620851]
[1726888675593,0.23099805,2547.6,2547.4,1.7620851]
[1726888680763,2.2539,2547.9,2547.4,1.7620851]
[1726888681001,0.23099805,2547.8,2547.6,1.7336404]
[1726888681511,0.23099805,2547.8,2547.4,1.7620851]
[1726888683806,0.23099805,2547.8,2547.6,1.7336404]
[1726888684009,0.23099805,2547.8,2547.6,4.2139404]
[1726888684375,2.3094,2548.1,2547.6,4.2139404]
[1726888684572,1.19897135,2548.0,2547.6,4.2139404]
[1726888685996,1.19897135,2548.0,2547.6,1.7336404]
[1726888686199,1.19897135,2548.0,2547.4,4.2423851]
[1726888686920,2.3094,2547.9,2547.4,4.2423851]
[1726888687215,0.23101925,2547.8,2547.4,4.2423851]
[1726888692813,0.23101925,2547.8,2547.4,1.7620851]
[1726888695296,0.23101925,2547.8,2547.5,5.2978]
[1726888695912,0.23101925,2547.8,2547.4,5.48632361]
[1726888696136,0.23101925,2547.8,2547.4,4.7620851]
[1726888706616,0.23101925,2547.8,2547.6,1.7336404]
[1726888710856,2.2924,2547.7,2547.6,1.7336404]
[1726888711061,2.2924,2547.7,2547.4,1.7620851]
[1726888711232,2.52290495,2547.7,2547.4,1.7620851]
[1726888727684,2.77519545,2547.7,2547.4,0.0284447]
[1726888740003,2.77519545,2547.7,2547.4,1.7620851]
[1726888740174,2.52290495,2547.7,2547.4,1.7620851]
[1726888742606,2.52290495,2547.7,2547.4,0.0284447]
[1726888748809,2.52290495,2547.7,2547.5,1.7336404]
[1726888749647,0.23050495,2547.7,2547.5,3.9974404]
[1726888749941,0.23050495,2547.7,2547.5,4.40002891]
[1726888750145,0.22836887,2547.6,2547.5,4.40002891]
[1726888750319,9.8054,2548.2,2547.5,6.9974404]
[1726888750515,0.22836887,2548.1,2547.7,1.7336404]
[1726888752148,0.22836887,2548.1,2547.9,1.7336404]
[1726888754121,2.4354,2548.4,2547.9,1.7336404]
[1726888754323,0.22786102,2548.3,2547.9,1.7336404]
[1726888754539,0.49418712,2548.3,2547.9,1.7336404]
[1726888757264,0.22786102,2548.3,2547.9,1.7336404]
[1726888757410,0.22786102,2548.3,2548.0,2.2765]
[1726888778809,0.22786102,2548.3,2548.2,2.3793]
[1726888778950,0.22786102,2548.3,2548.2,3.0]
[1726888779153,7.37,2548.7,2548.3,5.3793]
[1726888779382,7.37,2548.7,2548.6,2.3793]
[1726888779961,2.4462,2549.0,2548.6,2.3793]
[1726888780554,0.21028822,2548.9,2548.6,2.3793]
[1726888780750,0.21028822,2548.9,2548.7,1.7336404]
[1726888780956,7.37,2549.3,2548.7,1.7336404]
[1726888781190,8.35162,2549.3,2549.0,1.7336404]
[1726888781375,0.21028822,2549.2,2549.0,1.7336404]
[1726888781754,8.35162,2549.3,2549.0,1.7336404]
[1726888782264,0.21028822,2549.2,2548.8,1.7336404]
[1726888782504,8.35162,2549.3,2548.8,1.7336404]
[1726888782694,0.21028822,2549.1,2548.8,1.7336404]
[1726888782901,7.37,2549.3,2548.8,1.7336404]
[1726888783050,0.21028822,2549.0,2548.8,1.7336404]
[1726888783252,7.37,2549.3,2548.8,1.7336404]
[1726888783454,0.21028822,2548.9,2548.8,1.7336404]
[1726888783681,7.37,2549.3,2548.8,2.14493444]
[1726888783860,0.21028822,2548.9,2548.8,1.7336404]
[1726888784175,7.37,2549.3,2548.8,1.7336404]
[1726888784656,0.21037605,2549.2,2548.8,1.7336404]
[1726888784855,7.37,2549.3,2548.8,1.7336404]
[1726888785057,0.21037605,2549.2,2548.8,1.7336404]
[1726888785408,7.3788706,2549.7,2549.0,1.7336404]
[1726888785688,0.0088706,2549.7,2549.3,1.7336404]
[1726888785903,0.20336644,2549.6,2549.3,1.7336404]
[1726888786794,0.20336644,2549.6,2549.3,4.1129404]
[1726888787382,0.20336644,2549.6,2549.5,1.7336404]
[1726888799675,0.20336644,2549.6,2549.5,4.2316404]
[1726888800973,0.20336644,2549.6,2549.5,4.65480444]
[1726888802407,0.20336644,2549.6,2549.5,4.2316404]
[1726888814225,0.20336644,2549.6,2548.9,5.3256]
[1726888814409,0.20336644,2549.6,2549.1,1.7336404]
[1726888814623,2.4066,2549.5,2549.1,1.7336404]
[1726888815023,2.4066,2549.3,2548.4,2.3256]
[1726888815217,2.66764384,2549.3,2548.9,1.7336404]
[1726888815621,0.20383835,2549.2,2548.9,1.7336404]
[1726888815823,2.66764384,2549.3,2548.9,1.7336404]
[1726888816023,0.20383835,2549.1,2548.9,1.7336404]
[1726888816239,2.65006016,2549.3,2548.9,1.7336404]
[1726888816537,0.26500602,2549.2,2548.9,1.7336404]
[1726888816744,0.20373548,2549.2,2549.1,1.7336404]
[1726888817228,2.38901632,2549.3,2549.1,1.7336404]
[1726888817439,0.20373548,2549.2,2549.1,1.7336404]
[1726888818101,2.38901632,2549.3,2549.1,1.7336404]
[1726888818445,0.20373548,2549.2,2549.1,1.7336404]
[1726888818807,2.38901632,2549.3,2549.1,1.7336404]
[1726888819109,0.20373548,2549.2,2549.1,1.7336404]
[1726888819317,2.38901632,2549.3,2549.1,1.7336404]
[1726888819540,0.20373548,2549.2,2549.1,1.7336404]
[1726888819902,2.38901632,2549.3,2549.1,1.7336404]
[1726888820136,0.20373548,2549.2,2549.1,1.7336404]
[1726888820340,0.20373548,2549.2,2548.9,1.7336404]
[1726888820510,2.62791795,2549.3,2548.9,1.7336404]
[1726888820716,0.20373548,2549.2,2548.9,1.7336404]
[1726888820949,2.38901632,2549.3,2548.9,1.7336404]
[1726888821129,2.38901632,2549.3,2549.1,1.7336404]
[1726888825623,0.20373548,2549.2,2549.1,1.7336404]
[1726888826055,2.38901632,2549.3,2549.1,1.7336404]
[1726888826256,0.20373548,2549.2,2549.1,1.7336404]
[1726888826548,2.38901632,2549.3,2549.1,1.7336404]
[1726888826711,0.20373548,2549.2,2549.1,1.7336404]
[1726888826912,2.38901632,2549.3,2549.1,1.7336404]
[1726888827109,0.20373548,2549.2,2549.1,1.7336404]
[1726888827445,2.38901632,2549.3,2549.1,1.7336404]
[1726888827622,0.20362045,2549.2,2549.1,1.7336404]
[1726888828036,2.38901632,2549.3,2549.1,1.7336404]
[1726888828225,0.20362045,2549.2,2549.1,1.7336404]
[1726888828951,2.38901632,2549.3,2549.1,1.7336404]
[1726888829149,0.20362045,2549.2,2549.1,1.7336404]
[1726888829650,2.38901632,2549.3,2549.1,1.7336404]
[1726888829814,0.20362045,2549.2,2549.1,1.7336404]
[1726888830160,2.38901632,2549.3,2549.1,1.7336404]
[1726888830361,0.20362045,2549.2,2549.1,1.7336404]
[1726888830835,2.38901632,2549.3,2549.1,1.7336404]
[1726888831149,0.20362045,2549.2,2549.1,1.7336404]
[1726888831614,2.38901632,2549.3,2549.1,1.7336404]
[1726888831812,0.20362045,2549.2,2549.1,1.7336404]
[1726888832061,2.4066,2549.1,2548.7,1.7336404]
[1726888832363,2.4066,2548.9,2548.2,2.3256]
[1726888832506,2.4066,2548.9,2548.3,2.05405365]
[1726888832713,7.37,2549.2,2548.3,2.05405365]
[1726888832714,0.24455451,2548.8,2548.3,2.05405365]
[1726888833021,2.4066,2548.7,2548.3,1.7336404]
[1726888833224,2.65092448,2548.7,2548.5,1.7336404]
[1726888841364,2.65092448,2548.7,2548.5,1.8336404]
[1726888842775,0.24432448,2548.7,2548.5,1.8336404]
[1726888843234,2.3908,2548.9,2548.5,1.8336404]
[1726888843431,0.24404591,2548.6,2548.5,0.1]
[1726888843647,2.3908,2548.9,2548.6,1.7336404]
[1726888845447,2.3908,2548.9,2548.5,0.1]
[1726888850291,2.62988,2548.9,2548.5,0.1]
[1726888855268,0.24405803,2548.8,2548.5,0.1]
[1726888855598,2.4957,2548.7,2548.5,0.1]
[1726888856111,2.73973986,2548.6,2548.5,0.1]
[1726888870192,0.24403986,2548.6,2548.5,0.1]
[1726888870633,3.11037082,2549.0,2548.5,0.1]
[1726888870836,0.24377634,2548.6,2548.5,0.1]
[1726888871017,0.31103708,2548.9,2548.5,0.1]
[1726888871221,0.24377634,2548.6,2548.5,0.1]
[1726888871427,0.31103708,2548.9,2548.5,0.1]
[1726888871634,0.24377634,2548.6,2548.5,0.1]
[1726888871837,0.31103708,2548.9,2548.5,0.1]
[1726888872005,0.24377634,2548.6,2548.5,0.1]
[1726888872691,2.4957,2549.0,2548.5,0.1]
[1726888872813,0.24383391,2548.6,2548.5,0.1]
[1726888873016,2.4957,2549.0,2548.5,0.1]
[1726888873264,0.24383391,2548.6,2548.5,0.1]
[1726888873748,2.4957,2549.0,2548.5,0.1]
[1726888873928,0.24383391,2548.9,2548.5,0.1]
[1726888874117,0.5177873,2548.9,2548.5,0.1]
[1726888879466,0.5177873,2548.9,2548.4,2.4889]
[1726888879666,0.4177873,2548.9,2548.4,2.4889]
[1726888879873,0.51445396,2548.9,2548.4,2.4889]
[1726888890367,0.51445396,2548.9,2548.2,0.32147911]
[1726888890573,2.2763,2548.8,2548.2,0.32147911]
[1726888890760,2.2763,2548.8,2548.0,2.3107]
[1726888890761,2.51677332,2548.8,2548.1,3.32147911]
[1726888892279,2.51677332,2548.8,2548.1,3.0]
[1726888892902,2.51677332,2548.8,2548.1,3.32158258]
[1726888893107,2.61657332,2548.8,2548.1,3.32158258]
[1726888893470,0.26165733,2548.7,2548.1,3.32158258]
[1726888893702,0.24043089,2548.6,2548.1,3.32158258]
[1726888893905,0.24043089,2548.6,2548.1,3.22178258]
[1726888894071,0.24043089,2548.6,2548.1,2.9002]
[1726888894270,0.24043089,2548.6,2548.1,3.22182585]
[1726888895411,0.51826971,2548.6,2548.1,3.22182585]
[1726888895972,0.51826971,2548.6,2548.1,2.9002]
[1726888896681,0.51826971,2548.6,2548.2,0.32165126]
[1726888899415,0.51826971,2548.6,2548.2,0.32167548]
[1726888901223,0.51826971,2548.6,2548.3,0.32167548]
[1726888901419,0.51826971,2548.6,2548.2,0.32167548]
[1726888901629,2.4879,2548.5,2548.3,0.32167548]
[1726888901799,2.4879,2548.5,2548.2,0.32167548]
[1726888901999,2.4879,2548.5,2548.3,0.32167548]
[1726888902209,0.24043089,2548.4,2548.2,0.32167548]
[1726888902413,0.24043089,2548.4,2548.3,0.32167548]
[1726888902619,0.24043089,2548.4,2548.2,0.32167548]
[1726888902830,0.24043089,2548.4,2548.3,0.32167548]
[1726888902994,0.24043089,2548.4,2548.2,0.32167548]
[1726888903327,0.24043089,2548.4,2548.3,0.32167548]
[1726888903529,0.24043089,2548.4,2548.2,0.32167548]
[1726888903833,0.24043089,2548.4,2548.3,0.32167548]
[1726888904005,0.24043089,2548.4,2548.2,0.32167548]
[1726888904336,0.24043089,2548.4,2548.3,0.32167548]
[1726888904535,0.24043089,2548.4,2548.2,0.32167548]
[1726888904722,0.24043089,2548.4,2548.3,0.32167548]
[1726888905030,0.24043089,2548.4,2548.2,0.32167548]
[1726888905190,0.24043089,2548.4,2548.3,0.32167548]
[1726888906216,0.24043089,2548.4,2548.2,0.32193752]
[1726888906513,0.24043089,2548.4,2548.3,0.32193752]
[1726888906997,0.24043089,2548.4,2548.2,0.32193752]
[1726888907199,0.24043089,2548.4,2548.3,0.32193752]
[1726888907836,0.24043089,2548.4,2548.2,0.32193752]
[1726888908007,0.24043089,2548.4,2548.3,0.32193752]
[1726888909034,0.24043089,2548.4,2548.1,2.9002]
[1726888909334,0.24043089,2548.4,2548.2,0.32200409]
[1726888909691,0.24043089,2548.4,2548.3,0.32200409]
[1726888910491,0.24043089,2548.4,2548.3,0.32198648]
[1726888912432,0.24043089,2548.4,2548.3,0.32196222]
[1726888915715,0.24037938,2548.4,2548.1,2.9002]
[1726888915916,2.2746,2548.7,2548.1,2.9002]
[1726888916137,0.46783938,2548.6,2548.1,2.9002]
[1726888916334,0.24037938,2548.6,2548.4,2.3265]
[1726888916653,2.2746,2548.9,2548.5,0.32197564]
[1726888916827,2.2746,2548.9,2548.6,0.32197564]
[1726888917036,2.2746,2548.9,2548.5,0.32197564]
[1726888917221,2.2746,2548.9,2548.6,0.32197564]
[1726888917419,0.22746,2548.8,2548.5,0.32197564]
[1726888917793,0.22746,2548.8,2548.6,0.32193557]
[1726888917923,0.22746,2548.8,2548.5,0.32194471]
[1726888918257,0.22746,2548.8,2548.2,4.0601404]
[1726888919818,2.2746,2548.7,2548.2,4.0601404]
[1726888920019,2.524806,2548.7,2548.2,4.0601404]
[1726888920717,2.524806,2548.7,2548.2,2.3265]
[1726888920914,2.524806,2548.7,2548.1,3.0]
[1726888924583,2.524806,2548.7,2548.2,1.7336404]
[1726888926181,2.524806,2548.7,2548.0,2.3265]
[1726888926488,2.524806,2548.7,2547.0,4.41700519]
[1726888926489,2.3568,2548.5,2547.6,1.7336404]
[1726888926673,2.3568,2548.5,2547.8,4.0086404]
[1726888928189,2.3568,2548.5,2547.8,2.275]
[1726888928494,2.3568,2548.5,2547.5,2.275]
[1726888928650,2.3568,2548.3,2547.5,4.0086404]
[1726888930518,2.59088334,2548.2,2547.5,4.0086404]
[1726888931607,2.59088334,2548.2,2547.4,0.0284447]
[1726888934205,2.2678,2548.1,2547.4,0.0284447]
[1726888934377,2.2678,2547.9,2547.4,0.0284447]
[1726888934777,0.42355237,2548.0,2547.4,0.0284447]
[1726888934778,0.23390452,2547.8,2547.4,0.0284447]
[1726888935005,2.2678,2547.7,2547.4,0.0284447]
[1726888935204,0.23390452,2547.6,2547.4,0.0284447]
[1726888938832,0.23390452,2547.6,2547.5,1.7336404]
[1726888939330,2.2678,2547.9,2547.5,1.7336404]
[1726888939501,0.23362867,2547.6,2547.5,1.7336404]
[1726888939901,2.49458,2547.9,2547.5,1.7336404]
[1726888940101,0.23362867,2547.6,2547.5,1.7336404]
[1726888940735,2.49458,2547.9,2547.5,1.7336404]
[1726888941211,0.23362867,2547.8,2547.5,1.7336404]
[1726888945830,2.2678,2547.7,2547.4,0.0284447]
[1726888946439,0.23362867,2547.6,2547.4,0.0284447]
[1726888947002,0.23362867,2547.6,2547.5,2.4278]
[1726888947203,2.2678,2548.0,2547.5,2.4278]
[1726888947403,0.23367114,2547.9,2547.6,1.7336404]
[1726888948236,0.48381825,2547.9,2547.6,1.7336404]
[1726888949451,0.48381825,2547.9,2547.5,2.4278]
[1726888953043,0.48381825,2547.9,2547.4,1.7620851]
[1726888954020,2.4227,2547.8,2547.4,1.7620851]
[1726888954334,0.23098603,2547.7,2547.4,1.7620851]
[1726888954663,2.4227,2547.8,2547.4,1.7620851]
[1726888954863,0.23098603,2547.6,2547.4,1.7620851]
[1726888955031,2.4227,2547.8,2547.4,1.7620851]
[1726888955236,0.23098603,2547.7,2547.4,1.7620851]
[1726888955566,2.4227,2547.8,2547.4,1.7620851]
[1726888955716,0.23098603,2547.6,2547.4,1.7620851]
[1726888955921,2.4227,2547.8,2547.4,1.7620851]
[1726888956121,0.23098603,2547.5,2547.4,1.7620851]
[1726888956833,2.4227,2547.8,2547.4,1.7620851]
[1726888957152,0.23098603,2547.7,2547.4,1.7620851]
[1726888957657,0.23106181,2547.6,2547.4,1.7620851]
[1726888958156,2.4227,2547.8,2547.4,1.7620851]
[1726888958352,0.23106181,2547.5,2547.4,1.7620851]
[1726888958563,2.66497,2547.8,2547.4,1.7620851]
[1726888958744,0.23106181,2547.5,2547.4,1.7620851]
[1726888958948,2.4227,2547.8,2547.4,1.7620851]
[1726888959155,0.23106181,2547.5,2547.4,1.7620851]
[1726888959731,2.4227,2547.8,2547.4,1.7620851]
[1726888960041,2.66497,2547.8,2547.4,1.7620851]
[1726888960254,0.23106181,2547.7,2547.4,1.7620851]
[1726888960629,2.66497,2547.8,2547.4,0.0284447]
[1726888960833,0.23105575,2547.7,2547.4,0.0284447]
[1726888961071,0.28960257,2547.7,2547.4,0.0284447]
[1726888961355,0.23105575,2547.6,2547.4,0.0284447]
[1726888963974,2.4227,2547.5,2547.4,0.0284447]
[1726888964476,2.65366181,2547.5,2547.4,0.0284447]
[1726888970789,0.23096181,2547.5,2547.4,0.0284447]
[1726888970969,2.71230257,2547.7,2547.4,0.0284447]
[1726888971169,0.27123026,2547.6,2547.4,0.0284447]
[1726888971387,0.50219207,2547.6,2547.4,2.3869447]
[1726888971591,0.23096181,2547.6,2547.4,2.3869447]
[1726888972087,0.23087993,2547.5,2547.4,2.3869447]
[1726888972469,2.4227,2547.9,2547.4,2.3869447]
[1726888972664,0.23087993,2547.8,2547.4,2.3869447]
[1726888972980,0.23087993,2547.8,2547.4,0.0284447]
[1726888973294,0.49623792,2547.8,2547.4,0.0284447]
[1726888973986,0.49623792,2547.8,2547.4,1.7620851]
[1726888974302,0.49623792,2547.8,2547.5,2.4803]
[1726888975266,0.49623792,2547.8,2547.4,0.0284447]
[1726888978604,0.49623792,2547.8,2547.5,0.32229306]
[1726888978753,0.29189379,2547.7,2547.4,0.0284447]
[1726888978957,0.29189379,2547.7,2547.5,0.32229543]
[1726888979195,0.23092845,2547.6,2547.5,0.32229543]
[1726888983910,0.23092845,2547.6,2547.4,1.7620851]
[1726888984102,0.23092845,2547.6,2547.5,0.32230236]
[1726888984279,2.4227,2547.9,2547.5,0.32230236]
[1726888984483,0.47321362,2547.8,2547.6,0.32230236]
[1726888984875,0.47321362,2547.8,2547.5,0.32230236]
[1726888985082,0.47321362,2547.8,2547.6,0.32230236]
[1726888985281,0.47321362,2547.8,2547.4,1.7620851]
[1726888985482,0.23094362,2547.8,2547.4,1.7620851]
[1726888986699,0.23094362,2547.8,2547.4,1.84058955]
[1726888986868,0.23094362,2547.8,2547.5,2.4803]
[1726888988874,0.23094362,2547.8,2547.4,1.7620851]
[1726888990209,2.2763,2547.7,2547.4,0.0284447]
[1726888990363,2.52702436,2547.7,2547.4,0.0284447]
[1726888990565,0.23095269,2547.6,2547.4,0.0284447]
[1726888994163,0.23095269,2547.6,2547.5,2.4303]
[1726888994406,0.23095269,2547.6,2547.5,2.50880201]
[1726888994613,2.252,2548.0,2547.5,5.4303]
[1726888994793,2.252,2548.0,2547.7,1.7336404]
[1726888995415,3.2142,2548.0,2547.5,7.1639404]
[1726888995614,2.252,2548.0,2547.5,7.1639404]
[1726889005513,0.23105274,2547.9,2547.5,7.1639404]
[1726889009346,0.23105274,2547.9,2547.5,1.7336404]
[1726889012215,2.4402,2547.8,2547.5,1.7336404]
[1726889012812,0.23104364,2547.7,2547.5,1.7336404]
[1726889013049,2.4402,2547.8,2547.5,1.7336404]
[1726889013548,0.23104364,2547.7,2547.5,1.7336404]
[1726889013958,2.4402,2547.8,2547.5,1.7336404]
[1726889014129,0.23104364,2547.6,2547.5,1.7336404]
[1726889014318,2.4402,2547.8,2547.5,1.7336404]
[1726889014522,0.23104364,2547.7,2547.5,1.7336404]
[1726889014714,2.4402,2547.8,2547.5,1.7336404]
[1726889015030,0.23104364,2547.7,2547.5,1.7336404]
[1726889015229,2.4402,2547.8,2547.5,1.7336404]
[1726889015631,0.23104364,2547.7,2547.5,1.7336404]
[1726889015959,2.4402,2547.8,2547.5,1.7336404]
[1726889016161,0.23104364,2547.6,2547.5,1.7336404]
[1726889016329,2.4402,2547.8,2547.5,1.7336404]
[1726889016525,0.23104364,2547.6,2547.5,1.7336404]
[1726889016730,2.4402,2547.8,2547.5,1.7336404]
[1726889016929,0.23104364,2547.6,2547.5,1.7336404]
[1726889017144,2.4402,2547.8,2547.5,1.7336404]
[1726889017357,0.23104364,2547.6,2547.5,1.7336404]
[1726889017974,2.4402,2547.8,2547.5,1.7336404]
[1726889018158,0.23104364,2547.6,2547.5,1.7336404]
[1726889018334,2.4402,2547.8,2547.5,1.7336404]
[1726889019021,0.23104364,2547.7,2547.5,1.7336404]
[1726889019227,2.4402,2547.8,2547.4,0.0284447]
[1726889019426,0.24402,2547.7,2547.4,0.0284447]
[1726889019658,0.47513639,2547.7,2547.4,0.0284447]
[1726889021137,0.47513639,2547.7,2547.4,1.7620851]
[1726889021331,0.23111639,2547.7,2547.4,1.7620851]
[1726889021772,2.4402,2547.8,2547.4,1.7620851]
[1726889022375,0.23111639,2547.7,2547.4,1.7620851]
[1726889022875,0.23111639,2547.6,2547.4,1.7620851]
[1726889023035,2.4402,2547.8,2547.4,1.7620851]
[1726889023237,0.47513639,2547.7,2547.4,1.7620851]
[1726889023475,0.23111639,2547.7,2547.4,4.1896851]
[1726889023770,2.4402,2547.8,2547.4,4.1896851]
[1726889024067,0.23100726,2547.6,2547.4,4.1896851]
[1726889024272,2.4402,2547.8,2547.4,4.1896851]
[1726889024879,0.23100726,2547.7,2547.4,4.1896851]
[1726889025235,2.4402,2547.8,2547.4,4.1896851]
[1726889025575,2.3436,2548.0,2547.6,1.7336404]